[Event "*** Titled Tuesday Blitz"]
[Site "Chess.com"]
[Date "2020.10.27"]
[Round "8"]
[White "Lagmantr"]
[Black "Msb2"]
[Result "0-1"]
[WhiteElo "2742"]
[BlackElo "2913"]
[TimeControl "180+1"]
[EndTime "11:24:01 PDT"]
[Termination "Msb2 won by resignation"]

1. e4 {[%clk 0:03:00.9]} 1... e6 {[%clk 0:02:59.5]} 2. d4 {[%clk 0:03:00.8]}
2... d5 {[%clk 0:03:00.4]} 3. Nc3 {[%clk 0:03:01.4]} 3... Nf6 {[%clk 0:02:59.7]}
4. e5 {[%clk 0:03:01.8]} 4... Nfd7 {[%clk 0:02:59]} 5. f4 {[%clk 0:03:02.3]}
5... c5 {[%clk 0:02:59.9]} 6. Nf3 {[%clk 0:03:02.8]} 6... Nc6 {[%clk 0:03:00.8]}
7. Be3 {[%clk 0:03:02.6]} 7... a6 {[%clk 0:03:01.7]} 8. Qd2 {[%clk 0:03:02.3]}
8... b5 {[%clk 0:03:01.3]} 9. Be2 {[%clk 0:03:01.3]} 9... Be7 {[%clk 0:03:01.3]}
10. O-O {[%clk 0:03:01.1]} 10... O-O {[%clk 0:03:01.9]} 11. Rae1 {[%clk
0:02:59.3]} 11... Qb6 {[%clk 0:02:56.1]} 12. Nd1 {[%clk 0:02:58.3]} 12... b4
{[%clk 0:02:56.1]} 13. Kh1 {[%clk 0:02:56.2]} 13... a5 {[%clk 0:02:55.5]} 14. f5
{[%clk 0:02:39.2]} 14... exf5 {[%clk 0:02:50.6]} 15. dxc5 {[%clk 0:02:39]} 15...
Nxc5 {[%clk 0:02:45.9]} 16. Qxd5 {[%clk 0:02:08.8]} 16... Be6 {[%clk 0:02:38.1]}
17. Qd4 {[%clk 0:02:08.9]} 17... Nxd4 {[%clk 0:02:36.8]} 0-1

[Event "*** Titled Tuesday Blitz"]
[Site "Chess.com"]
[Date "2020.10.27"]
[Round "8"]
[White "Ranindu2003"]
[Black "Kaslask"]
[Result "1-0"]
[WhiteElo "2545"]
[BlackElo "2350"]
[TimeControl "180+1"]
[EndTime "11:24:32 PDT"]
[Termination "Ranindu2003 won by resignation"]

1. e4 {[%clk 0:02:59.9]} 1... c5 {[%clk 0:02:59.1]} 2. Nf3 {[%clk 0:03:00]} 2...
Nc6 {[%clk 0:02:58.6]} 3. d4 {[%clk 0:03:00.6]} 3... cxd4 {[%clk 0:02:57.6]} 4.
c3 {[%clk 0:03:01.5]} 4... dxc3 {[%clk 0:02:54.6]} 5. Nxc3 {[%clk 0:03:02.4]}
5... d6 {[%clk 0:02:54.7]} 6. Bc4 {[%clk 0:03:01.9]} 6... e6 {[%clk 0:02:54.6]}
7. O-O {[%clk 0:03:00.8]} 7... Be7 {[%clk 0:02:54.8]} 8. Qe2 {[%clk 0:03:01]}
8... Nf6 {[%clk 0:02:54.5]} 9. Rd1 {[%clk 0:02:58.6]} 9... e5 {[%clk 0:02:54.3]}
10. Bg5 {[%clk 0:02:53.2]} 10... O-O {[%clk 0:02:52.8]} 11. h3 {[%clk
0:02:44.9]} 11... Be6 {[%clk 0:02:51.8]} 12. Nb5 {[%clk 0:02:35.8]} 12... Rc8
{[%clk 0:02:30.3]} 13. Bxf6 {[%clk 0:02:33.8]} 13... gxf6 {[%clk 0:02:29]} 14.
Bd3 {[%clk 0:02:30]} 14... a6 {[%clk 0:02:27.6]} 15. Nc3 {[%clk 0:02:29.7]}
15... Kh8 {[%clk 0:02:25]} 16. Nd5 {[%clk 0:02:26.5]} 16... Bxd5 {[%clk
0:02:23.8]} 17. exd5 {[%clk 0:02:27.4]} 17... Nb8 {[%clk 0:02:18]} 18. Qe4
{[%clk 0:02:26.5]} 18... f5 {[%clk 0:01:54.4]} 19. Qxf5 {[%clk 0:02:26.2]} 1-0

[Event "*** Titled Tuesday Blitz"]
[Site "Chess.com"]
[Date "2020.10.27"]
[Round "8"]
[White "guillembaches"]
[Black "Deepweb2020"]
[Result "1-0"]
[WhiteElo "2390"]
[BlackElo "2224"]
[TimeControl "180+1"]
[EndTime "11:25:01 PDT"]
[Termination "guillembaches won by resignation"]

1. e4 {[%clk 0:03:00.9]} 1... e5 {[%clk 0:02:59.6]} 2. Nf3 {[%clk 0:03:01.1]}
2... Nc6 {[%clk 0:02:59.7]} 3. Nc3 {[%clk 0:03:01.7]} 3... Nf6 {[%clk
0:02:57.5]} 4. d4 {[%clk 0:03:02.3]} 4... exd4 {[%clk 0:02:56.9]} 5. Nxd4 {[%clk
0:03:03.2]} 5... Bb4 {[%clk 0:02:56.5]} 6. Nxc6 {[%clk 0:03:03.8]} 6... bxc6
{[%clk 0:02:52]} 7. Bd3 {[%clk 0:03:04.2]} 7... O-O {[%clk 0:02:51]} 8. O-O
{[%clk 0:03:04.2]} 8... d5 {[%clk 0:02:51.6]} 9. Bd2 {[%clk 0:03:04.6]} 9... Re8
{[%clk 0:02:41.3]} 10. Nxd5 {[%clk 0:03:04]} 10... cxd5 {[%clk 0:02:41.8]} 11.
Bxb4 {[%clk 0:03:03]} 11... dxe4 {[%clk 0:02:32.1]} 12. Bb5 {[%clk 0:03:02.6]}
12... Bd7 {[%clk 0:02:22.6]} 13. Bxd7 {[%clk 0:03:02.6]} 13... Nxd7 {[%clk
0:02:16.9]} 14. Qe2 {[%clk 0:02:52]} 14... Nb6 {[%clk 0:02:09.6]} 15. Rad1
{[%clk 0:02:50.6]} 15... Qg5 {[%clk 0:02:07.4]} 16. c4 {[%clk 0:02:44.4]} 16...
Re6 {[%clk 0:01:53.5]} 17. Bd2 {[%clk 0:02:40.7]} 17... Qc5 {[%clk 0:01:48.4]}
18. b3 {[%clk 0:02:37.7]} 18... Qa5 {[%clk 0:01:49.1]} 19. Bxa5 {[%clk
0:02:37.2]} 1-0

[Event "*** Titled Tuesday Blitz"]
[Site "Chess.com"]
[Date "2020.10.27"]
[Round "8"]
[White "Gabrielian_Artur"]
[Black "JoachimMouhamad"]
[Result "1-0"]
[WhiteElo "2778"]
[BlackElo "2328"]
[TimeControl "180+1"]
[EndTime "11:25:08 PDT"]
[Termination "Gabrielian_Artur won by resignation"]

1. d4 {[%clk 0:03:00.9]} 1... Nf6 {[%clk 0:02:59.4]} 2. c4 {[%clk 0:02:59.4]}
2... g6 {[%clk 0:02:59.6]} 3. Nc3 {[%clk 0:02:59.3]} 3... d5 {[%clk 0:02:59.9]}
4. cxd5 {[%clk 0:02:58.4]} 4... Nxd5 {[%clk 0:03:00.8]} 5. e4 {[%clk 0:02:58.8]}
5... Nxc3 {[%clk 0:02:59.5]} 6. bxc3 {[%clk 0:02:59.4]} 6... Bg7 {[%clk
0:03:00.4]} 7. Bc4 {[%clk 0:02:59.5]} 7... c5 {[%clk 0:02:58.1]} 8. Ne2 {[%clk
0:02:59.5]} 8... O-O {[%clk 0:02:57.8]} 9. O-O {[%clk 0:02:58.5]} 9... Nc6
{[%clk 0:02:58.3]} 10. Be3 {[%clk 0:02:58.6]} 10... Na5 {[%clk 0:02:58.2]} 11.
Bd3 {[%clk 0:02:57.3]} 11... b6 {[%clk 0:02:58.8]} 12. Qd2 {[%clk 0:02:57.4]}
12... e5 {[%clk 0:02:54.4]} 13. Bh6 {[%clk 0:02:53.2]} 13... Bxh6 {[%clk
0:02:40.3]} 14. Qxh6 {[%clk 0:02:52.2]} 14... cxd4 {[%clk 0:02:41.2]} 15. cxd4
{[%clk 0:02:51.8]} 15... exd4 {[%clk 0:02:42.1]} 16. f4 {[%clk 0:02:47.5]} 16...
f6 {[%clk 0:02:40.1]} 17. Rad1 {[%clk 0:02:40.2]} 17... Bb7 {[%clk 0:02:20.1]}
18. f5 {[%clk 0:02:36.6]} 18... g5 {[%clk 0:02:18.2]} 19. h4 {[%clk 0:02:31.7]}
19... gxh4 {[%clk 0:02:12.7]} 20. Rf4 {[%clk 0:02:28.8]} 20... Rf7 {[%clk
0:01:54.7]} 21. Rg4+ {[%clk 0:02:27.7]} 21... Kh8 {[%clk 0:01:53.2]} 22. Nf4
{[%clk 0:02:27.8]} 1-0

[Event "*** Titled Tuesday Blitz"]
[Site "Chess.com"]
[Date "2020.10.27"]
[Round "8"]
[White "krasavetc"]
[Black "LogoCzar"]
[Result "0-1"]
[WhiteElo "2286"]
[BlackElo "2375"]
[TimeControl "180+1"]
[EndTime "11:25:09 PDT"]
[Termination "LogoCzar won by resignation"]

1. Nf3 {[%clk 0:03:00.9]} 1... b6 {[%clk 0:02:59.2]} 2. e3 {[%clk 0:03:01.8]}
2... Bb7 {[%clk 0:02:59]} 3. d4 {[%clk 0:03:02.1]} 3... g6 {[%clk 0:02:59]} 4.
c4 {[%clk 0:03:01.8]} 4... Bg7 {[%clk 0:02:59.2]} 5. Nc3 {[%clk 0:03:02.3]} 5...
f5 {[%clk 0:02:59.2]} 6. Be2 {[%clk 0:03:01.7]} 6... e6 {[%clk 0:02:59.5]} 7.
O-O {[%clk 0:02:59.6]} 7... Nf6 {[%clk 0:02:59.7]} 8. Ne5 {[%clk 0:02:58.3]}
8... O-O {[%clk 0:02:56.4]} 9. Bf3 {[%clk 0:02:56.8]} 9... Qc8 {[%clk
0:02:56.5]} 10. Qb3 {[%clk 0:02:47.8]} 10... d6 {[%clk 0:02:53.6]} 11. Bxb7
{[%clk 0:02:45.7]} 11... Qxb7 {[%clk 0:02:53.5]} 12. Nd3 {[%clk 0:02:44.9]}
12... Nbd7 {[%clk 0:02:49.9]} 13. c5 {[%clk 0:02:43.2]} 13... dxc5 {[%clk
0:02:38.1]} 14. Qxe6+ {[%clk 0:02:41.7]} 14... Kh8 {[%clk 0:02:37.9]} 15. dxc5
{[%clk 0:02:38.5]} 15... Nxc5 {[%clk 0:02:35]} 16. Nxc5 {[%clk 0:02:37.4]} 16...
bxc5 {[%clk 0:02:35.4]} 17. Qc4 {[%clk 0:02:37.6]} 17... Qc6 {[%clk 0:02:31.9]}
18. b4 {[%clk 0:02:28.8]} 18... Ne4 {[%clk 0:02:27.1]} 19. Bb2 {[%clk
0:02:19.6]} 19... Nd2 {[%clk 0:02:25.7]} 20. Qd5 {[%clk 0:01:27.8]} 20... Qxd5
{[%clk 0:02:19.4]} 21. Nxd5 {[%clk 0:01:26.7]} 21... Bxb2 {[%clk 0:02:19]} 0-1

[Event "*** Titled Tuesday Blitz"]
[Site "Chess.com"]
[Date "2020.10.27"]
[Round "8"]
[White "Iskusnyh"]
[Black "Mazetovic"]
[Result "1-0"]
[WhiteElo "2579"]
[BlackElo "2745"]
[TimeControl "180+1"]
[EndTime "11:25:17 PDT"]
[Termination "Iskusnyh won by resignation"]

1. d4 {[%clk 0:03:00.9]} 1... Nf6 {[%clk 0:02:56.7]} 2. c4 {[%clk 0:03:00.7]}
2... g6 {[%clk 0:02:57.2]} 3. g3 {[%clk 0:03:00.6]} 3... Bg7 {[%clk 0:02:58.1]}
4. Bg2 {[%clk 0:03:01]} 4... O-O {[%clk 0:02:59]} 5. Nc3 {[%clk 0:03:01]} 5...
d6 {[%clk 0:02:59.9]} 6. Nf3 {[%clk 0:02:59.2]} 6... c6 {[%clk 0:03:00.8]} 7.
O-O {[%clk 0:02:58.3]} 7... Qa5 {[%clk 0:03:01.6]} 8. e4 {[%clk 0:02:51.3]} 8...
e5 {[%clk 0:03:00.9]} 9. h3 {[%clk 0:02:45.5]} 9... a6 {[%clk 0:02:58.5]} 10. a3
{[%clk 0:02:28]} 10... Nbd7 {[%clk 0:02:54.1]} 11. Qc2 {[%clk 0:02:12.1]} 11...
exd4 {[%clk 0:02:50]} 12. Nxd4 {[%clk 0:02:11.4]} 12... c5 {[%clk 0:02:49.5]}
13. Nde2 {[%clk 0:02:06]} 13... b5 {[%clk 0:02:49]} 14. e5 {[%clk 0:01:46.9]}
14... Nxe5 {[%clk 0:02:35.3]} 15. Bxa8 {[%clk 0:01:46.2]} 15... Bxh3 {[%clk
0:02:30.9]} 16. Bg2 {[%clk 0:01:42.5]} 16... Bxg2 {[%clk 0:02:30.5]} 17. Kxg2
{[%clk 0:01:42.3]} 17... bxc4 {[%clk 0:02:30]} 18. Nf4 {[%clk 0:01:36.3]} 18...
Nc6 {[%clk 0:02:25.3]} 19. Qa4 {[%clk 0:01:29.9]} 19... Qc7 {[%clk 0:02:24.4]}
20. Qxc4 {[%clk 0:01:29.4]} 20... Nd4 {[%clk 0:02:24.6]} 21. Be3 {[%clk
0:01:25.4]} 21... Qb7+ {[%clk 0:02:21.4]} 22. Ncd5 {[%clk 0:01:24.7]} 22... Nxd5
{[%clk 0:02:20.5]} 23. Qxd5 {[%clk 0:01:20.7]} 1-0

[Event "*** Titled Tuesday Blitz"]
[Site "Chess.com"]
[Date "2020.10.27"]
[Round "8"]
[White "Borsuk_Konstantin"]
[Black "infinitegiantkiller"]
[Result "1-0"]
[WhiteElo "2572"]
[BlackElo "2428"]
[TimeControl "180+1"]
[EndTime "11:25:30 PDT"]
[Termination "Borsuk_Konstantin won by checkmate"]

1. d4 {[%clk 0:03:00.9]} 1... e6 {[%clk 0:03:00.9]} 2. c4 {[%clk 0:03:01.1]}
2... d5 {[%clk 0:03:01.3]} 3. Nc3 {[%clk 0:03:01.5]} 3... Nf6 {[%clk 0:03:01.7]}
4. cxd5 {[%clk 0:03:02]} 4... exd5 {[%clk 0:03:01.8]} 5. Bg5 {[%clk 0:03:02.1]}
5... Be7 {[%clk 0:03:02.3]} 6. e3 {[%clk 0:03:02.2]} 6... O-O {[%clk 0:03:02.8]}
7. Bd3 {[%clk 0:03:02.6]} 7... c6 {[%clk 0:03:00.9]} 8. Nge2 {[%clk 0:03:02.2]}
8... Nbd7 {[%clk 0:03:01.1]} 9. f3 {[%clk 0:03:02.2]} 9... Re8 {[%clk
0:03:01.5]} 10. Bh4 {[%clk 0:03:02]} 10... Nf8 {[%clk 0:02:59.7]} 11. O-O {[%clk
0:03:02]} 11... Ng6 {[%clk 0:02:59.9]} 12. Bf2 {[%clk 0:03:01.3]} 12... c5
{[%clk 0:02:56.4]} 13. Rc1 {[%clk 0:02:59.1]} 13... c4 {[%clk 0:02:56.3]} 14.
Bb1 {[%clk 0:02:58.9]} 14... a6 {[%clk 0:02:56.9]} 15. h3 {[%clk 0:02:58.5]}
15... b5 {[%clk 0:02:56.7]} 16. a3 {[%clk 0:02:58.5]} 16... Bb7 {[%clk
0:02:57.1]} 17. e4 {[%clk 0:02:58.3]} 17... dxe4 {[%clk 0:02:57]} 18. fxe4
{[%clk 0:02:59.2]} 18... Nh5 {[%clk 0:02:55.5]} 19. Qd2 {[%clk 0:02:50.3]} 19...
Bg5 {[%clk 0:02:53.9]} 20. Be3 {[%clk 0:02:50.2]} 20... Bxe3+ {[%clk 0:02:53.6]}
21. Qxe3 {[%clk 0:02:50.2]} 21... Nf6 {[%clk 0:02:51.9]} 22. e5 {[%clk
0:02:39.3]} 22... Nd5 {[%clk 0:02:51.4]} 23. Qf3 {[%clk 0:02:33.6]} 23... Rf8
{[%clk 0:02:38.5]} 24. Be4 {[%clk 0:02:29.6]} 24... Nxc3 {[%clk 0:02:33.5]} 25.
bxc3 {[%clk 0:02:24.2]} 25... Bxe4 {[%clk 0:02:31.2]} 26. Qxe4 {[%clk
0:02:25.1]} 26... Qe7 {[%clk 0:02:30.8]} 27. Ng3 {[%clk 0:02:21.6]} 27... Qxa3
{[%clk 0:02:23.7]} 28. h4 {[%clk 0:02:21.6]} 28... a5 {[%clk 0:02:14.1]} 29. h5
{[%clk 0:02:19.5]} 29... Ne7 {[%clk 0:02:14.3]} 30. h6 {[%clk 0:02:14.9]} 30...
gxh6 {[%clk 0:02:09.4]} 31. Nh5 {[%clk 0:02:01.2]} 31... Ng6 {[%clk 0:02:00.3]}
32. Qe3 {[%clk 0:02:00.2]} 32... Rfe8 {[%clk 0:01:53.3]} 33. Qxh6 {[%clk
0:01:57.2]} 33... Qf8 {[%clk 0:01:52.4]} 34. Nf6+ {[%clk 0:01:56.9]} 34... Kh8
{[%clk 0:01:52.2]} 35. Qxh7# {[%clk 0:01:57.2]} 1-0

[Event "*** Titled Tuesday Blitz"]
[Site "Chess.com"]
[Date "2020.10.27"]
[Round "8"]
[White "pavelalexandru07"]
[Black "elohunter1999"]
[Result "0-1"]
[WhiteElo "2344"]
[BlackElo "2505"]
[TimeControl "180+1"]
[EndTime "11:25:57 PDT"]
[Termination "elohunter1999 won by resignation"]

1. d4 {[%clk 0:02:34.2]} 1... d5 {[%clk 0:02:58.7]} 2. Nf3 {[%clk 0:02:33.6]}
2... Nf6 {[%clk 0:02:58.2]} 3. g3 {[%clk 0:02:33.3]} 3... c5 {[%clk 0:02:53.6]}
4. Bg2 {[%clk 0:02:33]} 4... cxd4 {[%clk 0:02:53.4]} 5. Nxd4 {[%clk 0:02:31]}
5... e5 {[%clk 0:02:52.7]} 6. Nf3 {[%clk 0:02:31.5]} 6... Nc6 {[%clk 0:02:52.5]}
7. O-O {[%clk 0:02:32]} 7... Be7 {[%clk 0:02:24.8]} 8. c3 {[%clk 0:02:31.2]}
8... O-O {[%clk 0:02:22.9]} 9. b4 {[%clk 0:02:30.5]} 9... e4 {[%clk 0:02:19.4]}
10. Nd4 {[%clk 0:02:30.4]} 10... Ne5 {[%clk 0:02:19.4]} 11. Nd2 {[%clk
0:02:30.2]} 11... Bd7 {[%clk 0:02:08.8]} 12. a3 {[%clk 0:02:20.9]} 12... Qc8
{[%clk 0:02:08.2]} 13. f3 {[%clk 0:02:10.6]} 13... Qxc3 {[%clk 0:02:07.5]} 14.
N2b3 {[%clk 0:02:08.3]} 14... Ba4 {[%clk 0:01:56.6]} 15. Bd2 {[%clk 0:02:03]}
15... Qc8 {[%clk 0:01:51.4]} 16. Rc1 {[%clk 0:02:02.4]} 16... Nc4 {[%clk
0:01:50.9]} 17. fxe4 {[%clk 0:02:00.4]} 17... Nxe4 {[%clk 0:01:49.3]} 18. Bxe4
{[%clk 0:02:00]} 18... dxe4 {[%clk 0:01:49.1]} 19. Qc2 {[%clk 0:01:55.4]} 19...
Nxd2 {[%clk 0:01:37.5]} 20. Qxd2 {[%clk 0:01:48.4]} 20... Qg4 {[%clk 0:01:30.8]}
21. Qe3 {[%clk 0:01:48.4]} 21... Bg5 {[%clk 0:01:30]} 22. Qf2 {[%clk 0:01:41.3]}
22... Bxc1 {[%clk 0:01:27.1]} 23. Rxc1 {[%clk 0:01:41.3]} 23... Bxb3 {[%clk
0:01:25.9]} 24. Nxb3 {[%clk 0:01:40.9]} 24... Rac8 {[%clk 0:01:26.4]} 25. Nc5
{[%clk 0:01:39.4]} 25... b6 {[%clk 0:01:25.7]} 0-1

[Event "*** Titled Tuesday Blitz"]
[Site "Chess.com"]
[Date "2020.10.27"]
[Round "8"]
[White "UCantHandleDenker"]
[Black "LuisFSiles"]
[Result "1-0"]
[WhiteElo "2505"]
[BlackElo "2299"]
[TimeControl "180+1"]
[EndTime "11:26:04 PDT"]
[Termination "UCantHandleDenker won by resignation"]

1. Nf3 {[%clk 0:03:00.9]} 1... Nf6 {[%clk 0:02:53.7]} 2. g3 {[%clk 0:03:01.4]}
2... g6 {[%clk 0:02:54]} 3. Bg2 {[%clk 0:03:01.7]} 3... Bg7 {[%clk 0:02:54.6]}
4. O-O {[%clk 0:03:02.3]} 4... O-O {[%clk 0:02:55.2]} 5. d3 {[%clk 0:03:02.9]}
5... c5 {[%clk 0:02:54]} 6. Nbd2 {[%clk 0:03:03.5]} 6... Nc6 {[%clk 0:02:53.8]}
7. e4 {[%clk 0:03:04.2]} 7... d5 {[%clk 0:02:51.5]} 8. Re1 {[%clk 0:03:04.7]}
8... dxe4 {[%clk 0:02:47.1]} 9. dxe4 {[%clk 0:03:04.3]} 9... e5 {[%clk
0:02:46.4]} 10. c3 {[%clk 0:03:04]} 10... h6 {[%clk 0:02:37.8]} 11. Qe2 {[%clk
0:02:54.6]} 11... Qc7 {[%clk 0:02:26.4]} 12. a4 {[%clk 0:02:54.2]} 12... Bg4
{[%clk 0:02:22.5]} 13. h3 {[%clk 0:02:52.6]} 13... Be6 {[%clk 0:02:17]} 14. Nc4
{[%clk 0:02:47.4]} 14... Nd7 {[%clk 0:02:11.1]} 15. Nfd2 {[%clk 0:02:42.1]}
15... Nb6 {[%clk 0:01:56.6]} 16. Ne3 {[%clk 0:02:40.5]} 16... Rad8 {[%clk
0:00:43]} 17. a5 {[%clk 0:02:31.2]} 17... Nc8 {[%clk 0:00:38.4]} 18. a6 {[%clk
0:02:31.3]} 18... b6 {[%clk 0:00:37.7]} 19. Ndc4 {[%clk 0:02:26]} 19... Nd4
{[%clk 0:00:32.4]} 20. cxd4 {[%clk 0:02:20.9]} 20... cxd4 {[%clk 0:00:31.9]} 21.
Nd5 {[%clk 0:02:20.5]} 21... f5 {[%clk 0:00:31.7]} 22. Nxc7 {[%clk 0:02:19.5]}
1-0

[Event "*** Titled Tuesday Blitz"]
[Site "Chess.com"]
[Date "2020.10.27"]
[Round "8"]
[White "Sesleria"]
[Black "mohssenbinaddi"]
[Result "0-1"]
[WhiteElo "1880"]
[BlackElo "2083"]
[TimeControl "180+1"]
[EndTime "11:26:11 PDT"]
[Termination "mohssenbinaddi won by resignation"]

1. e4 {[%clk 0:03:00.9]} 1... c6 {[%clk 0:03:00.9]} 2. d4 {[%clk 0:02:59.8]}
2... d5 {[%clk 0:03:01.8]} 3. e5 {[%clk 0:03:00.1]} 3... Bf5 {[%clk 0:03:01.1]}
4. Nf3 {[%clk 0:03:00.6]} 4... e6 {[%clk 0:02:56.3]} 5. Be2 {[%clk 0:03:00.5]}
5... Ne7 {[%clk 0:02:54.8]} 6. c4 {[%clk 0:02:59.4]} 6... Ng6 {[%clk 0:02:54.6]}
7. Nc3 {[%clk 0:02:52.9]} 7... Nd7 {[%clk 0:02:48.9]} 8. Bg5 {[%clk 0:02:44.3]}
8... f6 {[%clk 0:02:43.3]} 9. exf6 {[%clk 0:02:32.9]} 9... gxf6 {[%clk
0:02:44.2]} 10. Be3 {[%clk 0:02:20.9]} 10... Qc7 {[%clk 0:02:43.1]} 11. cxd5
{[%clk 0:02:19.1]} 11... exd5 {[%clk 0:02:42.3]} 12. Qa4 {[%clk 0:01:55.3]}
12... Nb6 {[%clk 0:02:40.2]} 13. Qa5 {[%clk 0:01:52.3]} 13... Bd6 {[%clk
0:02:32.2]} 14. g3 {[%clk 0:01:25.3]} 14... O-O {[%clk 0:02:20.7]} 15. O-O-O
{[%clk 0:01:14.6]} 15... Qe7 {[%clk 0:01:59.2]} 16. Rhe1 {[%clk 0:01:06.9]}
16... Bb4 {[%clk 0:01:58.2]} 0-1

[Event "*** Titled Tuesday Blitz"]
[Site "Chess.com"]
[Date "2020.10.27"]
[Round "8"]
[White "Akhayan"]
[Black "azikom"]
[Result "0-1"]
[WhiteElo "2262"]
[BlackElo "2559"]
[TimeControl "180+1"]
[EndTime "11:26:30 PDT"]
[Termination "azikom won by resignation"]

1. d4 {[%clk 0:02:53.1]} 1... d5 {[%clk 0:02:59.3]} 2. Nf3 {[%clk 0:02:52.5]}
2... c6 {[%clk 0:02:57.2]} 3. g3 {[%clk 0:02:52.6]} 3... Bg4 {[%clk 0:02:54.2]}
4. Bg2 {[%clk 0:02:52.5]} 4... Nd7 {[%clk 0:02:53.1]} 5. O-O {[%clk 0:02:52.5]}
5... e6 {[%clk 0:02:50.7]} 6. c4 {[%clk 0:02:52.5]} 6... Ngf6 {[%clk 0:02:49.4]}
7. Nc3 {[%clk 0:02:49.2]} 7... Be7 {[%clk 0:02:43.9]} 8. cxd5 {[%clk 0:02:47.5]}
8... exd5 {[%clk 0:02:42]} 9. Bf4 {[%clk 0:02:45.6]} 9... O-O {[%clk 0:02:40.9]}
10. Ne5 {[%clk 0:02:45]} 10... Bh5 {[%clk 0:02:39.1]} 11. Rc1 {[%clk 0:02:40.9]}
11... Re8 {[%clk 0:02:36.7]} 12. Re1 {[%clk 0:02:38.7]} 12... Nf8 {[%clk
0:02:33.7]} 13. Qd2 {[%clk 0:02:31.4]} 13... Ne6 {[%clk 0:02:30.2]} 14. Be3
{[%clk 0:02:27.1]} 14... Nd7 {[%clk 0:02:26.5]} 15. Nd3 {[%clk 0:02:21.4]} 15...
Nb6 {[%clk 0:02:21.6]} 16. b3 {[%clk 0:02:19]} 16... h6 {[%clk 0:02:15.9]} 17.
Nf4 {[%clk 0:02:14.8]} 17... Nxf4 {[%clk 0:02:12.6]} 18. Bxf4 {[%clk 0:02:14.9]}
18... Bg6 {[%clk 0:02:10.4]} 19. e4 {[%clk 0:02:04.2]} 19... dxe4 {[%clk
0:02:09.3]} 20. Nxe4 {[%clk 0:01:58.9]} 20... Nd5 {[%clk 0:02:08.4]} 21. Be5
{[%clk 0:01:42.6]} 21... Bb4 {[%clk 0:02:05.6]} 22. Nc3 {[%clk 0:01:31.2]} 22...
Nxc3 {[%clk 0:02:03.1]} 23. Rxc3 {[%clk 0:01:31.3]} 23... Bxc3 {[%clk 0:02:02]}
24. Qxc3 {[%clk 0:01:31.3]} 24... f6 {[%clk 0:02:00.4]} 25. Bf4 {[%clk
0:01:30.7]} 25... Rxe1+ {[%clk 0:01:58.8]} 26. Qxe1 {[%clk 0:01:30.7]} 26... Bf7
{[%clk 0:01:58.7]} 27. d5 {[%clk 0:01:29.6]} 27... cxd5 {[%clk 0:01:55.3]} 28.
Qd2 {[%clk 0:01:29.5]} 28... Rc8 {[%clk 0:01:51.9]} 29. Bxh6 {[%clk 0:01:28.9]}
29... gxh6 {[%clk 0:01:49.3]} 30. Qxh6 {[%clk 0:01:29.1]} 30... Rc6 {[%clk
0:01:47.5]} 31. Bh3 {[%clk 0:01:28.5]} 31... Qf8 {[%clk 0:01:45.8]} 32. Qh4
{[%clk 0:01:27.2]} 32... Qg7 {[%clk 0:01:40.6]} 0-1

[Event "*** Titled Tuesday Blitz"]
[Site "Chess.com"]
[Date "2020.10.27"]
[Round "8"]
[White "Snegokhod"]
[Black "manitodeplomo"]
[Result "0-1"]
[WhiteElo "2453"]
[BlackElo "2642"]
[TimeControl "180+1"]
[EndTime "11:26:41 PDT"]
[Termination "manitodeplomo won by resignation"]

1. e4 {[%clk 0:03:00.9]} 1... g6 {[%clk 0:02:58.8]} 2. d4 {[%clk 0:03:00.6]}
2... Bg7 {[%clk 0:02:59]} 3. Nc3 {[%clk 0:03:01.1]} 3... c5 {[%clk 0:02:58.9]}
4. d5 {[%clk 0:03:00.5]} 4... d6 {[%clk 0:02:56.4]} 5. Nf3 {[%clk 0:03:00.3]}
5... Nf6 {[%clk 0:02:53.3]} 6. h3 {[%clk 0:02:58.4]} 6... O-O {[%clk 0:02:52.3]}
7. a4 {[%clk 0:02:58.2]} 7... e6 {[%clk 0:02:47.6]} 8. dxe6 {[%clk 0:02:56.9]}
8... Bxe6 {[%clk 0:02:47.2]} 9. Bd3 {[%clk 0:02:53.5]} 9... Nc6 {[%clk
0:02:45.7]} 10. O-O {[%clk 0:02:53.2]} 10... d5 {[%clk 0:02:39.6]} 11. exd5
{[%clk 0:02:53]} 11... Nxd5 {[%clk 0:02:40.5]} 12. Nxd5 {[%clk 0:02:53.2]} 12...
Qxd5 {[%clk 0:02:41.4]} 13. Ng5 {[%clk 0:02:48.8]} 13... Rad8 {[%clk 0:02:35.7]}
14. Nxe6 {[%clk 0:02:48.7]} 14... Qxe6 {[%clk 0:02:34]} 15. Qe2 {[%clk
0:02:35.1]} 15... Qxe2 {[%clk 0:02:08.7]} 16. Bxe2 {[%clk 0:02:34.8]} 16... Rfe8
{[%clk 0:02:02.4]} 17. Bf3 {[%clk 0:02:28.4]} 17... Nd4 {[%clk 0:02:01.3]} 18.
Bxb7 {[%clk 0:02:28.5]} 18... Nxc2 {[%clk 0:02:01.4]} 19. Rb1 {[%clk 0:02:24.1]}
19... Rb8 {[%clk 0:01:59.8]} 20. Ba6 {[%clk 0:02:13.5]} 20... Rb6 {[%clk
0:01:53.1]} 21. Bd3 {[%clk 0:02:06.8]} 21... Nb4 {[%clk 0:01:47.5]} 22. Bb5
{[%clk 0:02:06.8]} 22... Rc8 {[%clk 0:01:42.8]} 23. Be3 {[%clk 0:02:02.2]} 23...
a6 {[%clk 0:01:41.8]} 24. Bc4 {[%clk 0:01:50.4]} 24... Nc2 {[%clk 0:01:35.4]}
25. b3 {[%clk 0:01:50.5]} 25... Bd4 {[%clk 0:01:28.7]} 26. Bh6 {[%clk
0:01:41.9]} 26... Na3 {[%clk 0:01:19.5]} 27. Bd3 {[%clk 0:01:35]} 27... Nxb1
{[%clk 0:01:19.2]} 28. Rxb1 {[%clk 0:01:31.3]} 28... c4 {[%clk 0:01:16]} 29.
bxc4 {[%clk 0:01:31.2]} 29... Rxb1+ {[%clk 0:01:15.9]} 30. Bxb1 {[%clk
0:01:31.3]} 30... Rxc4 {[%clk 0:01:16.4]} 31. a5 {[%clk 0:01:30.3]} 31... Ra4
{[%clk 0:01:14.1]} 32. Bd3 {[%clk 0:01:28.6]} 32... Rxa5 {[%clk 0:01:11]} 0-1